bitfinex-derivatives/quotes_SOLF0:USTF0_20241016
["timestamp","ask_amount","ask_price","bid_price","bid_amount"]
[1729061251133,3.2488,153.9,153.87,3.2492]
[1729061251330,8.99,153.91,153.85,8.99]
[1729061252334,12.239,153.89,153.86,3.2494]
[1729061252938,12.2387,153.9,153.87,3.2492]
[1729061253137,8.99,153.9,153.85,8.99]
[1729061253839,12.2386,153.91,153.88,3.2491]
[1729061254848,8.99,153.9,153.84,13.89]
[1729061255037,3.2491,153.88,153.84,13.89]
[1729061255447,8.99,153.9,153.84,13.89]
[1729061255631,12.2388,153.9,153.85,8.99]
[1729061255836,8.99,153.9,153.85,8.99]
[1729061256033,8.99,153.91,153.85,8.99]
[1729061256232,8.99,153.91,153.84,4.9]
[1729061256233,8.99,153.91,153.87,8.99]
[1729061256435,11.7872,153.93,153.87,8.99]
[1729061257044,12.2385,153.91,153.88,3.249]
[1729061257361,2.7972,153.93,153.85,1.3161]
[1729061257544,12.2385,153.91,153.87,3.2492]
[1729061260244,8.99,153.91,153.86,8.99]
[1729061260443,8.99,153.9,153.85,10.3061]
[1729061260645,8.99,153.88,153.82,1.0]
[1729061260847,8.99,153.88,153.83,4.86]
[1729061261052,3.2495,153.86,153.83,8.11]
[1729061261550,8.99,153.86,153.82,5.86]
[1729061261750,3.2497,153.85,153.82,9.1102]
[1729061261950,8.99,153.86,153.82,9.1102]
[1729061262154,12.2396,153.86,153.82,9.1102]
[1729061262545,8.99,153.85,153.82,1.0]
[1729061262755,8.99,153.84,153.82,1.0]
[1729061263148,12.2401,153.84,153.82,1.0]
[1729061265055,8.99,153.84,153.82,1.0]
[1729061265258,3.2501,153.83,153.82,1.0]
[1729061271883,12.2401,153.83,153.82,1.0]
[1729061273367,10.93736167,153.87,153.82,1.0]
[1729061273675,12.2398,153.85,153.82,1.0]
[1729061273982,3.2494,153.87,153.84,3.2497]
[1729061274366,8.99,153.91,153.86,8.99]
[1729061274573,12.2384,153.92,153.88,3.2489]
[1729061274765,2.7452,153.95,153.88,8.99]
[1729061274766,8.99,153.94,153.88,8.99]
[1729061274980,8.99,153.94,153.9,3.2485]
[1729061275276,3.2481,153.93,153.88,8.99]
[1729061275980,3.2481,153.93,153.89,3.2487]
[1729061276371,3.2484,153.92,153.88,8.99]
[1729061276570,2.7452,153.95,153.86,17.0995]
[1729061276571,8.99,153.91,153.86,17.0995]
[1729061276784,8.99,153.9,153.86,4.86]
[1729061276974,12.2392,153.88,153.85,4.86]
[1729061277481,8.99,153.87,153.84,4.86]
[1729061277874,14.04,153.89,153.84,4.86]
[1729061278172,3.2492,153.88,153.84,4.86]
[1729061278475,14.04,153.89,153.84,4.86]
[1729061279379,3.2494,153.87,153.84,4.86]
[1729061280279,17.26174111,153.89,153.84,4.86]
[1729061280487,3.2495,153.86,153.84,4.86]
[1729061281687,17.26174111,153.89,153.82,1.0]
[1729061281688,3.25,153.84,153.82,1.0]
[1729061281873,14.04,153.85,153.82,1.0]
[1729061282278,3.2501,153.83,153.82,1.0]
[1729061285186,3.2498,153.85,153.82,1.0]
[1729061286487,14.04,153.87,153.82,1.0]
[1729061286787,3.25,153.84,153.82,1.0]
[1729061287584,3.2501,153.83,153.82,1.0]
[1729061289677,17.2901,153.83,153.82,1.0]
[1729061289873,3.2512,153.78,153.77,1.0]
[1729061294679,1.388,153.8,153.77,1.0]
[1729061294983,4.6389,153.8,153.77,1.0]
[1729061295185,1.388,153.8,153.77,1.0]
[1729061295393,3.251,153.79,153.77,1.0]
[1729061299092,3.2512,153.78,153.77,1.0]
[1729061301698,18.9,153.81,153.77,1.0]
[1729061301999,14.04,153.85,153.77,1.0]
[1729061302200,18.92,153.85,153.77,1.0]
[1729061302894,3.2505,153.82,153.78,3.2511]
[1729061305901,3.2505,153.82,153.79,3.2509]
[1729061308007,1.3264,153.87,153.78,4.88]
[1729061308008,1.3264,153.87,153.78,18.92]
[1729061308305,14.04,153.91,153.8,14.04]
[1729061308509,4.88,153.92,153.82,14.04]
[1729061308702,18.92,153.93,153.86,3.2493]
[1729061308906,18.92,153.93,153.83,4.88]
[1729061309403,18.92,153.93,153.86,3.2495]
[1729061311402,3.2487,153.9,153.86,3.2495]
[1729061311804,3.2487,153.9,153.83,4.88]
[1729061312004,3.2487,153.9,153.87,3.2493]
[1729061312512,18.92,153.93,153.87,3.2493]
[1729061314616,3.2487,153.9,153.87,3.2493]
[1729061315509,3.2484,153.92,153.88,3.2489]
[1729061315712,14.04,153.96,153.87,18.88]
[1729061316304,3.2478,153.94,153.91,3.2484]
[1729061317601,3.2478,153.94,153.91,8.0884]
[1729061318723,14.04,153.96,153.89,4.84]
[1729061318901,15.4118,153.96,153.89,4.84]
[1729061319414,3.2483,153.92,153.89,4.84]
[1729061320612,15.4118,153.96,153.85,1.4359]
[1729061320817,3.2487,153.9,153.87,3.2492]
[1729061321014,14.04,153.94,153.86,4.84]
[1729061321218,3.2483,153.92,153.88,3.249]
[1729061322011,3.2485,153.91,153.88,3.249]
[1729061322320,14.04,153.94,153.86,4.84]
[1729061322909,14.04,153.92,153.85,4.84]
[1729061323107,14.04,153.89,153.81,1.3707]
[1729061323313,3.2496,153.86,153.82,8.0902]
[1729061323520,14.04,153.92,153.82,18.88]
[1729061323917,3.2491,153.89,153.85,3.2497]
[1729061324123,14.04,153.92,153.85,3.2497]
[1729061324320,3.2488,153.9,153.86,3.2493]
[1729061324615,3.2488,153.9,153.86,4.84]
[1729061325023,3.2488,153.9,153.86,8.0894]
[1729061325418,3.2488,153.9,153.86,4.84]
[1729061325615,3.2488,153.9,153.87,3.2492]
[1729061326215,1.3081,153.95,153.86,18.88]
[1729061326420,18.88,153.98,153.88,14.04]
[1729061327321,3.2479,153.94,153.88,14.04]
[1729061327913,3.2479,153.94,153.9,3.2485]
[1729061328109,3.2479,153.94,153.91,4.84]
[1729061328917,3.2475,153.96,153.92,3.2481]
[1729061329119,18.88,154.0,153.92,3.2481]
[1729061329624,3.23976608,153.99,153.92,3.2481]
[1729061330424,3.2476,153.95,153.92,3.2481]
[1729061330916,3.2482,153.93,153.89,3.2487]
[1729061331227,14.04,153.96,153.89,4.84]
[1729061331420,16.7702,153.96,153.89,4.84]
[1729061331615,3.2484,153.92,153.89,4.84]
[1729061331924,16.7702,153.96,153.89,4.84]
[1729061332121,3.2481,153.93,153.89,8.0887]
[1729061333522,3.2481,153.93,153.9,3.2486]
[1729061334423,18.88,154.0,153.9,14.04]
[1729061335124,3.2474,153.96,153.92,3.248]
[1729061335327,3.2474,153.96,153.93,4.84]
[1729061336224,126.31392569,153.97,153.93,8.0879]
[1729061336421,3.2474,153.97,153.93,8.0879]
[1729061337317,14.04,154.0,153.93,8.0879]
[1729061337517,3.2474,153.96,153.93,8.0879]
[1729061338715,3.2484,153.92,153.89,3.2488]
[1729061341316,3.2481,153.93,153.9,3.2486]
[1729061341528,1.4192,153.95,153.9,3.2486]
[1729061341920,3.248,153.94,153.9,3.2486]
[1729061342121,1.4192,153.95,153.86,14.04]
[1729061342321,14.04,153.94,153.87,4.84]
[1729061342726,3.2488,153.9,153.87,4.84]
[1729061343227,14.04,153.94,153.87,4.84]
[1729061343427,3.2486,153.91,153.88,3.249]
[1729061344427,3.2486,153.91,153.87,8.0892]
[1729061347232,3.22763223,153.93,153.86,3.2495]
[1729061347431,14.04,153.94,153.85,4.86]
[1729061347828,3.2487,153.9,153.87,3.2491]
[1729061348131,14.04,153.94,153.85,4.86]
[1729061349032,3.2489,153.89,153.86,3.2495]
[1729061349227,14.04,153.94,153.85,4.86]
[1729061349634,3.2486,153.91,153.87,3.2491]
[1729061349835,8.98,153.92,153.86,13.84]
[1729061350037,3.249,153.89,153.86,4.86]
[1729061350532,3.249,153.89,153.86,13.84]
[1729061351239,1.4192,153.95,153.86,17.0893]
[1729061351530,1.4192,153.95,153.91,8.98]
[1729061351836,3.2473,153.97,153.94,12.2278]
[1729061352335,3.2473,153.97,153.94,3.2478]
[1729061352539,14.04,154.02,153.95,3.2475]
[1729061352736,18.9,154.02,153.95,3.2475]
[1729061352934,18.9,154.02,153.92,18.9]
[1729061352935,22.13238887,154.02,153.92,18.9]
[1729061353233,3.2474,153.96,153.92,18.9]
[1729061353426,3.2474,153.96,153.92,4.86]
[1729061353631,3.2474,153.96,153.9,14.04]
[1729061353829,22.13238887,154.02,153.91,4.86]
[1729061353830,3.248,153.94,153.91,4.86]
[1729061354035,14.04,153.97,153.91,4.86]
[1729061354238,1.3663,153.96,153.91,4.86]
[1729061354633,3.2479,153.94,153.91,4.86]
[1729061356244,1.3663,153.96,153.91,4.86]
[1729061356443,3.23238887,154.02,153.91,4.86]
[1729061356444,14.04,153.99,153.91,4.86]
[1729061357338,3.2473,153.97,153.93,3.2479]
[1729061358228,3.247,153.98,153.95,3.2475]
[1729061358434,18.1191,154.01,153.92,14.04]
[1729061358635,16.7916,154.01,153.95,4.86]
[1729061358841,16.7916,154.01,153.96,3.2473]
[1729061359742,1.4295,154.01,153.95,4.86]
[1729061360942,3.2467,154.0,153.96,3.2474]
[1729061363747,3.2467,154.0,153.97,3.2471]
[1729061363944,3.2463,154.02,153.95,4.86]
[1729061364540,14.04,154.03,153.95,4.86]
[1729061364745,3.2462,154.02,153.98,3.2468]
[1729061365044,3.2462,154.02,153.96,14.04]
[1729061365251,3.2462,154.02,153.98,3.2468]
[1729061366646,3.2462,154.02,153.99,3.2467]
[1729061366844,1.3275,154.04,153.96,14.04]
[1729061367056,3.2465,154.01,153.95,4.86]
[1729061367752,3.2465,154.01,153.98,3.2469]
[1729061370144,3.246,154.03,153.99,3.2466]
[1729061371641,3.2461,154.02,153.99,3.2466]
[1729061374357,3.2459,154.03,154.0,12.2264]
[1729061377259,3.2458,154.04,154.01,3.2463]
[1729061378861,3.2461,154.03,154.0,8.98]
[1729061379160,8.98,154.02,153.94,4.6259689]
[1729061379352,8.98,154.02,153.97,8.98]
[1729061379958,3.2465,154.01,153.97,12.227]
[1729061380657,8.98,154.02,153.97,8.98]
[1729061380963,3.2469,153.99,153.97,4.82]
[1729061381956,8.98,154.01,153.93,1.3662]
[1729061382164,3.2473,153.97,153.94,4.82]
[1729061384471,3.2473,153.97,153.94,13.8]
[1729061385864,3.2473,153.97,153.94,4.82]
[1729061388972,3.2473,153.97,153.94,8.0678]
[1729061389173,4.82,154.04,153.96,8.98]
[1729061389374,8.98,154.02,153.96,8.98]
[1729061389671,3.2469,153.99,153.95,3.2475]
[1729061390673,3.2469,153.99,153.96,3.2473]
[1729061393776,8.98,153.98,153.89,1.3989]
[1729061393975,8.98,153.96,153.92,4.82]
[1729061394470,3.248,153.93,153.92,4.82]
[1729061394665,8.98,153.93,153.77,7.26881797]
[1729061394964,3.2486,153.91,153.88,4.82]
[1729061395567,3.2488,153.9,153.88,4.82]
[1729061395784,3.2488,153.9,153.86,8.0894]
[1729061396565,3.2488,153.9,153.87,3.2493]
[1729061398465,3.2484,153.92,153.88,3.249]
[1729061400476,14.03,153.94,153.88,3.249]
[1729061400674,3.2484,153.91,153.88,3.249]
[1729061402374,3.2482,153.93,153.89,3.2488]
[1729061402577,14.03,153.96,153.86,18.87]
[1729061402884,3.2481,153.93,153.89,3.2489]
[1729061403177,14.03,153.94,153.86,4.84]
[1729061403366,1.4073,153.93,153.86,4.84]
[1729061403569,3.2486,153.91,153.87,3.2491]
[1729061403762,1.4073,153.93,153.86,4.84]
[1729061404166,3.2491,153.89,153.86,4.84]
[1729061404370,14.03,153.9,153.82,1.3673]
[1729061404572,14.03,153.9,153.8,14.03]
[1729061404770,3.2502,153.83,153.79,3.2508]
[1729061404970,3.2502,153.83,153.79,4.84]
[1729061405175,17.31437389,153.88,153.79,4.84]
[1729061405772,3.2499,153.85,153.81,3.2505]
[1729061406781,3.2499,153.85,153.79,4.84]
[1729061407180,3.2494,153.87,153.8,14.03]
[1729061407380,18.1195,153.93,153.85,3.2496]
[1729061407581,4.84,153.92,153.84,4.84]
[1729061407977,4.84,153.92,153.84,8.0899]
[1729061408172,4.84,153.92,153.84,4.84]
[1729061409190,3.2492,153.88,153.84,8.0898]
[1729061409694,3.2492,153.88,153.84,4.84]
[1729061409889,4.84,153.92,153.85,3.2497]
[1729061410194,3.2487,153.9,153.84,4.84]
[1729061410391,3.2487,153.9,153.86,3.2493]
[1729061411595,1.4073,153.93,153.86,14.03]
[1729061411793,1.3611,153.98,153.89,14.03]
[1729061411990,1.3611,153.98,153.85,4.1771]
[1729061411991,1.3611,153.98,153.91,14.03]
[1729061412891,3.2473,153.97,153.93,3.2479]
[1729061413396,1.3611,153.98,153.91,14.03]
[1729061413598,1.3611,153.98,153.91,3.2484]
[1729061414095,3.2474,153.96,153.92,3.2482]
[1729061416198,1.3611,153.98,153.92,3.2482]
[1729061416398,3.2476,153.95,153.92,3.2482]
[1729061416698,1.3611,153.98,153.93,3.248]
[1729061416898,3.2472,153.97,153.91,14.03]
[1729061417799,3.2474,153.96,153.93,3.2478]
[1729061418699,3.2472,153.97,153.93,3.2478]
[1729061419488,3.2474,153.96,153.93,3.2478]
[1729061419902,21.6696,154.01,153.94,3.2478]
[1729061420101,4.84,154.03,153.94,4.84]
[1729061420604,3.2467,154.0,153.96,3.2472]
[1729061422804,3.2471,153.98,153.94,8.0876]
[1729061422990,14.03,154.01,153.94,4.84]
[1729061423299,3.2479,153.94,153.91,3.2483]
[1729061423497,14.03,153.99,153.9,4.84]
[1729061423498,17.33691783,153.97,153.9,4.84]
[1729061423704,14.03,153.97,153.9,4.84]
[1729061424103,3.2482,153.93,153.9,4.84]
[1729061424497,3.2475,153.96,153.92,3.2481]
[1729061424702,2.6986,153.98,153.9,4.84]
[1729061425307,3.2477,153.95,153.91,3.2484]
[1729061425704,5.93374127,153.98,153.9,4.84]
[1729061425913,3.2481,153.93,153.9,8.0885]
[1729061426101,5.93374127,153.98,153.9,8.0885]
[1729061426309,3.2476,153.95,153.92,3.2482]
[1729061428003,16.7286,153.98,153.9,4.84]
[1729061428206,3.2479,153.94,153.9,8.0885]
[1729061428910,3.2479,153.94,153.9,4.84]
[1729061429112,3.2479,153.94,153.91,3.2484]
[1729061429701,4.84,153.99,153.91,14.03]
[1729061429909,15.3927,154.02,153.93,14.03]
[1729061430113,6.2027,154.02,153.95,14.03]
[1729061430305,3.2465,154.01,153.97,3.247]
[1729061430507,6.2027,154.02,153.97,3.247]
[1729061430810,6.2027,154.02,153.94,4.84]
[1729061431008,20.2327,154.02,153.95,3.2474]
[1729061431210,3.2469,153.99,153.95,3.2474]
[1729061431713,3.2469,153.99,153.94,4.84]
[1729061432009,3.2469,153.99,153.96,3.2474]
[1729061435012,3.2469,153.99,153.94,4.84]
[1729061435218,1.3627,154.02,153.93,8.1279]
[1729061435219,14.03,154.0,153.93,8.1279]
[1729061435517,4.88,153.99,153.91,6.194]
[1729061435716,3.2478,153.95,153.91,9.4423]
[1729061437119,3.2478,153.95,153.92,3.2482]
[1729061437908,3.2473,153.97,153.94,3.2478]
[1729061438312,4.88,154.01,153.92,14.03]
[1729061439523,3.2473,153.97,153.94,3.2477]
[1729061439709,4.88,154.01,153.91,7.5337]
[1729061439914,14.03,154.0,153.91,7.5337]
[1729061440220,3.2473,153.97,153.93,3.2479]
[1729061440517,3.248,153.94,153.91,4.5623]
[1729061440725,14.03,153.98,153.91,1.314]
[1729061440917,14.03,154.0,153.91,1.314]
[1729061441113,3.2473,153.97,153.91,1.314]
[1729061441913,3.2473,153.97,153.92,1.4012]
[1729061442521,3.2473,153.97,153.94,3.2478]
[1729061445827,6.2427,154.02,153.95,8.98]
[1729061446019,8.98,154.01,153.95,8.98]
[1729061446628,3.2467,154.0,153.95,12.2275]
[1729061446923,3.19090909,154.07,153.98,8.98]
[1729061447223,3.2465,154.01,153.98,8.98]
[1729061447423,8.98,154.04,153.98,8.98]
[1729061447727,8.98,154.02,153.98,8.98]
[1729061448222,3.2465,154.01,153.98,8.98]
[1729061448421,3.2465,154.01,153.98,12.2269]
[1729061449921,3.2465,154.01,153.98,3.2469]
[1729061451116,14.03,154.03,153.97,4.88]
[1729061452029,3.2469,153.99,153.97,4.88]
[1729061453528,14.03,154.03,153.97,4.88]
[1729061453826,3.2467,154.0,153.97,4.88]
[1729061454635,3.2467,154.0,153.97,8.1271]
[1729061455031,3.247,153.98,153.97,4.88]
[1729061455231,3.247,153.98,153.94,8.1277]
[1729061455431,3.247,153.98,153.94,4.88]
[1729061455933,14.03,154.03,153.94,4.88]
[1729061458331,3.2465,154.01,153.96,3.2473]
[1729061458536,14.03,154.03,153.96,3.2473]
[1729061458740,14.03,154.03,153.94,4.88]
[1729061460035,14.03,154.01,153.92,1.4012]
[1729061460225,14.03,154.01,153.95,4.88]
[1729061461036,3.2469,153.99,153.95,8.1274]
[1729061461239,3.2469,153.99,153.95,4.88]
[1729061462437,3.2469,153.99,153.96,3.2473]
[1729061462833,5.88,154.05,153.95,18.91]
[1729061462834,3.2466,154.0,153.95,18.91]
[1729061463030,19.91,154.05,153.98,3.247]
[1729061464330,15.03,154.05,153.98,3.247]
[1729061464933,3.2463,154.02,153.98,3.247]
[1729061465638,15.03,154.05,153.99,4.9]
[1729061465939,1.0,154.05,153.99,4.9]
[1729061467041,3.2465,154.01,153.99,4.9]
[1729061467540,3.2461,154.03,153.99,8.1466]
[1729061468433,3.2457,154.04,153.99,4.9]
[1729061469534,3.2457,154.04,154.01,3.2463]
[1729061469737,3.2457,154.04,153.99,4.9]
[1729061470138,3.2457,154.04,153.99,13.88]
[1729061470341,3.2457,154.04,154.0,3.2464]
[1729061472436,3.2457,154.04,154.0,12.2264]
[1729061472836,1.0,154.05,154.03,8.98]
[1729061473040,1.0,154.05,154.04,4.9]
[1729061473456,3.2441,154.12,154.04,4.9]
[1729061473759,3.2441,154.12,154.08,8.98]
[1729061474044,3.2441,154.12,154.08,17.1249]
[1729061474249,1.0,154.13,154.08,17.1249]
[1729061474250,4.2439,154.13,154.08,17.1249]
[1729061474944,1.0,154.13,154.08,17.1249]
[1729061475540,1.0,154.13,154.08,4.9]
[1729061475746,9.98,154.13,154.08,13.88]
[1729061476352,13.2238,154.13,154.08,17.1249]
[1729061477948,9.98,154.13,154.08,13.88]
[1729061478248,3.244,154.12,154.08,13.88]
[1729061478551,1.0,154.13,154.08,17.1249]
[1729061478748,1.0,154.13,154.11,8.98]
[1729061479052,1.0,154.13,154.12,12.224]
[1729061479253,1.0,154.13,154.12,17.124]
[1729061480167,1.0,154.13,154.12,4.9]
[1729061480461,1.0,154.13,154.12,13.88]
[1729061480968,1.0,154.13,154.12,17.124]
[1729061482568,1.0,154.13,154.12,4.9]
[1729061483263,3.2444,154.11,154.03,2.7775]
[1729061483463,1.0,154.13,154.04,4.9]
[1729061483767,1.0,154.13,154.08,8.98]
[1729061483964,4.2439,154.13,154.08,17.1248]
[1729061484562,4.2439,154.13,154.09,8.98]
[1729061485565,4.2439,154.13,154.09,12.2245]
[1729061486264,4.2439,154.13,154.09,8.98]
[1729061486265,3.2442,154.12,154.09,8.98]
[1729061486471,1.0,154.13,154.09,8.98]
[1729061487370,4.2439,154.13,154.09,12.2246]
[1729061487670,1.0,154.13,154.11,8.98]
[1729061489360,1.0,154.13,154.11,12.2241]
[1729061490170,4.2439,154.13,154.09,3.2446]
[1729061490470,1.0,154.13,154.1,4.9]
[1729061491466,4.2439,154.13,154.1,4.9]
[1729061492279,1.0,154.13,154.1,8.1443]
[1729061492673,1.0,154.13,154.1,13.88]
[1729061492877,1.0,154.13,154.11,12.2241]
[1729061496363,1.0,154.13,154.12,3.244]
[1729061496569,1.0,154.13,154.11,8.98]
[1729061496876,1.0,154.13,154.11,3.2442]
[1729061497389,4.244,154.13,154.1,13.88]
[1729061498575,4.244,154.13,154.1,4.9]
[1729061498776,3.2445,154.1,154.08,4.92]
[1729061498979,3.2445,154.1,154.07,4.92]
[1729061499787,3.2445,154.1,154.07,8.1649]
[1729061500275,12.224,154.12,154.09,3.2446]
[1729061501488,1.0,154.13,154.09,8.98]
[1729061501974,9.98,154.13,154.07,13.9]
[1729061502173,3.2443,154.11,154.08,3.2447]
[1729061502373,8.98,154.11,154.07,4.92]
[1729061503080,3.2446,154.1,154.07,17.1449]
[1729061504486,3.244,154.12,154.09,12.2246]
[1729061505083,1.0,154.13,154.09,8.98]
[1729061505278,4.2438,154.13,154.1,12.2243]
[1729061506988,1.0,154.13,154.11,3.2442]
[1729061507183,1.0,154.13,154.11,8.98]
[1729061507381,1.0,154.13,154.11,13.9]
[1729061507886,1.0,154.13,154.12,3.244]
[1729061508779,1.0,154.13,154.11,13.9]
[1729061508980,1.0,154.13,154.11,17.1441]
[1729061510284,1.0,154.13,154.12,3.244]
[1729061511791,1.0,154.13,154.12,12.224]
[1729061520487,1.0,154.13,154.11,4.92]
[1729061520687,1.0,154.13,154.12,3.244]
[1729061533310,1.0,154.18,154.17,3.243]
[1729061533502,1.0,154.18,154.17,12.223]
[1729061537809,1.0,154.18,154.11,4.1562]
[1729061538009,1.0,154.18,154.15,12.2234]
[1729061538202,1.0,154.18,154.16,4.84]
[1729061538396,1.0,154.18,154.14,8.98]
[1729061538397,3.243,154.17,154.14,8.98]
[1729061538599,1.0,154.18,154.13,13.82]
[1729061538600,9.98,154.18,154.13,13.82]
[1729061538904,3.2434,154.16,154.13,13.82]
[1729061539108,3.2434,154.16,154.13,4.84]
[1729061539810,3.2434,154.16,154.12,8.084]
[1729061542311,3.2434,154.16,154.13,8.98]
[1729061544807,1.3605,154.17,154.13,8.98]
[1729061545005,1.3605,154.17,154.14,3.2434]
[1729061546209,3.2433,154.16,154.13,3.2437]
[1729061546813,3.244,154.13,154.1,3.2444]
[1729061547312,3.2441,154.12,154.09,8.0846]
[1729061551111,1.0,154.18,154.17,3.243]
[1729061551321,1.0,154.22,154.17,13.82]
[1729061551613,1.0,154.22,154.2,8.98]
[1729061551818,1.0,154.22,154.21,8.0821]
[1729061552209,1.0,154.22,154.21,4.84]
[1729061552719,1.0,154.22,154.18,4.84]
[1729061552911,1.0,154.22,154.18,17.0625]
[1729061553711,1.0,154.22,154.19,3.2425]
[1729061555112,1.0,154.22,154.18,4.84]
[1729061555611,1.0,154.22,154.18,8.0826]
[1729061556212,1.0,154.22,154.18,4.84]
[1729061556514,1.0,154.22,154.21,3.2421]
[1729061558607,1.0,154.22,154.2,3.2423]
[1729061560213,1.0,154.22,154.19,3.2425]
[1729061560913,3.2421,154.21,154.18,8.2227]
[1729061561112,1.0,154.22,154.18,8.2227]
[1729061561517,3.2422,154.21,154.18,4.98]
[1729061563814,3.2425,154.2,154.16,17.2531]
[1729061564016,1.0,154.22,154.16,4.98]
[1729061566621,3.2424,154.2,154.17,3.2429]
[1729061567617,3.2425,154.19,154.16,3.2431]
[1729061567813,3.2425,154.19,154.15,4.98]
[1729061568015,4.1079,154.21,154.15,4.98]
[1729061568722,3.2424,154.2,154.16,3.243]
[1729061569821,4.1079,154.21,154.16,3.243]
[1729061570010,3.2426,154.19,154.16,3.243]
[1729061571522,7.41960937,154.21,154.15,4.98]
[1729061571711,7.41960937,154.21,154.15,8.2233]
[1729061571912,14.01,154.2,154.11,86.45067113]
[1729061572118,3.2432,154.16,154.12,3.244]
[1729061576728,14.01,154.18,154.09,4.98]
[1729061577619,3.2438,154.14,154.1,3.2443]
[1729061577927,3.2438,154.14,154.09,4.98]
[1729061579124,3.2432,154.16,154.1,14.01]
[1729061579328,4.98,154.19,154.1,14.01]
[1729061580032,3.2432,154.17,154.13,3.2437]
[1729061580227,4.98,154.19,154.1,14.01]
[1729061580529,3.2429,154.18,154.12,3.2439]
[1729061580829,3.2429,154.18,154.1,14.01]
[1729061581527,3.2433,154.16,154.13,3.2437]
[1729061581728,14.01,154.18,154.09,4.98]
[1729061582329,3.2434,154.15,154.12,3.2439]
[1729061583831,14.01,154.18,154.08,14.01]
[1729061584028,14.01,154.16,154.07,4.98]
[1729061584827,3.2437,154.14,154.09,3.2445]
[1729061585030,3.2437,154.14,154.07,4.98]
[1729061586232,3.2437,154.14,154.11,3.2442]
[1729061588937,3.2432,154.16,154.13,3.2437]
[1729061590327,4.92,154.18,154.1,14.01]
[1729061590526,4.1079,154.21,154.12,14.01]
[1729061590735,1.3818,154.21,154.14,14.01]
[1729061590922,1.3818,154.21,154.15,4.92]
[1729061591129,4.624,154.21,154.17,3.2428]
[1729061593032,4.624,154.21,154.18,3.2427]
[1729061593530,3.2422,154.21,154.18,3.2427]
[1729061593937,3.2429,154.18,154.15,8.1632]
[1729061594235,15.01,154.22,154.12,23.1236]
[1729061594830,3.2426,154.19,154.16,3.243]
[1729061595237,15.01,154.22,154.16,3.243]
[1729061595536,3.2424,154.2,154.16,3.243]
[1729061596733,3.2424,154.2,154.17,3.2429]
[1729061597233,4.242,154.22,154.16,4.92]
[1729061597533,1.0,154.22,154.16,18.93]
[1729061598032,1.0,154.22,154.19,8.97]
[1729061598446,1.0,154.22,154.2,3.2422]